[Event "Titled Tuesday Blitz November 01 Early 2022"]
[White "Principe, Gerson"]
[Black "Jaskolka, Tomasz"]
[WhiteFideId "3804550"]
[BlackFideId "1170791"]
[WhiteElo "2280"]
[BlackElo "2126"]
[Result "0-1"]
[Round "07"]
[TimeControl "180+1"]
[Date "2022.11.02"]
[WhiteClock "0:01:23"]
[BlackClock "0:02:03"]

1. Nf3 {[%clk 0:03:00]}  d5 {[%clk 0:02:57]} 2. b3 {[%clk 0:02:58]}  Bg4 {[%clk 0:02:56]} 3. Ne5 {[%clk 0:02:54]}  Bf5 {[%clk 0:02:55]} 4. f4 {[%clk 0:02:50]}  f6 {[%clk 0:02:55]} 5. Nf3 {[%clk 0:02:50]}  Nc6 {[%clk 0:02:52]} 6. Bb2 {[%clk 0:02:49]}  Qd7 {[%clk 0:02:52]} 7. e3 {[%clk 0:02:47]}  O-O-O {[%clk 0:02:53]} 8. Bb5 {[%clk 0:02:48]}  a6 {[%clk 0:02:53]} 9. Bxc6 {[%clk 0:02:47]}  Qxc6 {[%clk 0:02:54]} 10. Nd4 {[%clk 0:02:47]}  Qd7 {[%clk 0:02:52]} 11. Nxf5 {[%clk 0:02:47]}  Qxf5 {[%clk 0:02:53]} 12. O-O {[%clk 0:02:47]}  e6 {[%clk 0:02:51]} 13. Nc3 {[%clk 0:02:37]}  Bc5 {[%clk 0:02:49]} 14. d4 {[%clk 0:02:34]}  Ba7 {[%clk 0:02:46]} 15. Na4 {[%clk 0:02:16]}  Ne7 {[%clk 0:02:43]} 16. c4 {[%clk 0:02:05]}  dxc4 {[%clk 0:02:40]} 17. bxc4 {[%clk 0:02:05]}  Qe4 {[%clk 0:02:40]} 18. Re1 {[%clk 0:02:02]}  Nf5 {[%clk 0:02:34]} 19. Qb3 {[%clk 0:02:01]}  g5 {[%clk 0:02:25]} 20. fxg5 {[%clk 0:01:57]}  Rhg8 {[%clk 0:02:25]} 21. Nc3 {[%clk 0:01:54]}  Qg4 {[%clk 0:02:21]} 22. Qd1 {[%clk 0:01:50]}  Qxg5 {[%clk 0:02:20]} 23. Qf3 {[%clk 0:01:27]}  Nh4 {[%clk 0:02:05]} 24. Qg3 {[%clk 0:01:23]}  Qh5 {[%clk 0:02:03]} 0-1


[Site "https://www.chess.com"]

[Event "Titled Tuesday Blitz November 01 Early 2022"]
[White "Quirke, Jeffrey"]
[Black "Goriatchkin, Jouri"]
[WhiteFideId "2013029"]
[BlackFideId "4120183"]
[WhiteElo "2194"]
[BlackElo "1855"]
[Result "1/2-1/2"]
[Round "07"]
[TimeControl "180+1"]
[Date "2022.11.02"]
[WhiteClock "0:01:13"]
[BlackClock "0:01:25"]

1. e4 {[%clk 0:03:00]}  c6 {[%clk 0:02:59]} 2. Nf3 {[%clk 0:02:54]}  d5 {[%clk 0:03:00]} 3. Nc3 {[%clk 0:02:53]}  dxe4 {[%clk 0:02:59]} 4. Nxe4 {[%clk 0:02:53]}  Nf6 {[%clk 0:02:59]} 5. Qe2 {[%clk 0:02:52]}  Nxe4 {[%clk 0:02:54]} 6. Qxe4 {[%clk 0:02:52]}  Qd5 {[%clk 0:02:43]} 7. Qf4 {[%clk 0:02:52]}  Qf5 {[%clk 0:02:32]} 8. d3 {[%clk 0:02:39]}  Qxf4 {[%clk 0:02:31]} 9. Bxf4 {[%clk 0:02:38]}  Bf5 {[%clk 0:02:31]} 10. Be2 {[%clk 0:02:31]}  e6 {[%clk 0:02:31]} 11. O-O-O {[%clk 0:02:29]}  Be7 {[%clk 0:02:32]} 12. h3 {[%clk 0:02:28]}  Nd7 {[%clk 0:02:31]} 13. g4 {[%clk 0:02:27]}  Bg6 {[%clk 0:02:31]} 14. Ne5 {[%clk 0:02:24]}  Nxe5 {[%clk 0:02:08]} 15. Bxe5 {[%clk 0:02:25]}  f6 {[%clk 0:02:08]} 16. Bc3 {[%clk 0:02:24]}  e5 {[%clk 0:02:07]} 17. Bf3 {[%clk 0:02:19]}  Bf7 {[%clk 0:02:06]} 18. Be4 {[%clk 0:02:16]}  Bd5 {[%clk 0:02:04]} 19. a3 {[%clk 0:02:10]}  Bxe4 {[%clk 0:02:02]} 20. dxe4 {[%clk 0:02:09]}  Rd8 {[%clk 0:02:02]} 21. f3 {[%clk 0:02:01]}  Kf7 {[%clk 0:01:57]} 22. Rxd8 {[%clk 0:01:38]}  Rxd8 {[%clk 0:01:56]} 23. Rd1 {[%clk 0:01:38]}  Rxd1+ {[%clk 0:01:57]} 24. Kxd1 {[%clk 0:01:38]}  Ke6 {[%clk 0:01:58]} 25. Ke2 {[%clk 0:01:36]}  Bc5 {[%clk 0:01:57]} 26. Bd2 {[%clk 0:01:36]}  g5 {[%clk 0:01:54]} 27. Be1 {[%clk 0:01:32]}  Bd4 {[%clk 0:01:52]} 28. c3 {[%clk 0:01:32]}  Bc5 {[%clk 0:01:51]} 29. h4 {[%clk 0:01:32]}  h6 {[%clk 0:01:51]} 30. h5 {[%clk 0:01:32]}  Bf8 {[%clk 0:01:49]} 31. Kd3 {[%clk 0:01:31]}  Kd6 {[%clk 0:01:45]} 32. b4 {[%clk 0:01:28]}  b5 {[%clk 0:01:44]} 33. c4 {[%clk 0:01:27]}  Ke6 {[%clk 0:01:33]} 34. Bf2 {[%clk 0:01:23]}  a6 {[%clk 0:01:33]} 35. Bb6 {[%clk 0:01:20]}  Kd7 {[%clk 0:01:31]} 36. c5 {[%clk 0:01:19]}  Be7 {[%clk 0:01:30]} 37. Kc3 {[%clk 0:01:15]}  Bd8 {[%clk 0:01:24]} 38. Bxd8 {[%clk 0:01:14]}  Kxd8 {[%clk 0:01:25]} 39. Kd3 {[%clk 0:01:13]} 1/2-1/2


[Site "https://www.chess.com"]

[Event "Titled Tuesday Blitz November 01 Early 2022"]
[White "Romero Ruscalleda, Josep"]
[Black "Kotepalli, Sai Nirupama"]
[WhiteFideId "2231859"]
[BlackFideId "5039444"]
[WhiteElo "2273"]
[BlackElo "2393"]
[Result "1-0"]
[Round "07"]
[TimeControl "180+1"]
[Date "2022.11.02"]
[WhiteClock "0:01:51"]
[BlackClock "0:01:01"]

1. e4 {[%clk 0:02:57]}  c5 {[%clk 0:02:48]} 2. c3 {[%clk 0:02:57]}  Nf6 {[%clk 0:02:47]} 3. e5 {[%clk 0:02:57]}  Nd5 {[%clk 0:02:43]} 4. Nf3 {[%clk 0:02:58]}  Nc6 {[%clk 0:02:43]} 5. Bc4 {[%clk 0:02:58]}  Nb6 {[%clk 0:02:40]} 6. Bb3 {[%clk 0:02:58]}  c4 {[%clk 0:02:37]} 7. Bc2 {[%clk 0:02:58]}  d6 {[%clk 0:02:34]} 8. exd6 {[%clk 0:02:56]}  exd6 {[%clk 0:02:33]} 9. O-O {[%clk 0:02:55]}  Be7 {[%clk 0:02:32]} 10. Qe2 {[%clk 0:02:49]}  Be6 {[%clk 0:02:22]} 11. b3 {[%clk 0:02:42]}  d5 {[%clk 0:02:16]} 12. d4 {[%clk 0:02:39]}  cxd3 {[%clk 0:02:07]} 13. Qxd3 {[%clk 0:02:35]}  Qc7 {[%clk 0:02:03]} 14. Re1 {[%clk 0:02:22]}  O-O-O {[%clk 0:02:00]} 15. a4 {[%clk 0:02:19]}  h6 {[%clk 0:01:52]} 16. a5 {[%clk 0:02:19]}  Nd7 {[%clk 0:01:51]} 17. a6 {[%clk 0:02:10]}  b6 {[%clk 0:01:44]} 18. Na3 {[%clk 0:02:05]}  Nc5 {[%clk 0:01:41]} 19. Qe2 {[%clk 0:02:05]}  Bf6 {[%clk 0:01:34]} 20. Nb5 {[%clk 0:02:03]}  Qd7 {[%clk 0:01:23]} 21. Bf4 {[%clk 0:01:59]}  Qe7 {[%clk 0:01:01]} 22. b4 {[%clk 0:01:51]} 1-0


[Site "https://www.chess.com"]

[Event "Titled Tuesday Blitz November 01 Early 2022"]
[White "Ronka, Erik"]
[Black "Goryachkina, Aleksandra"]
[WhiteFideId "505080"]
[BlackFideId "4147103"]
[WhiteElo "2264"]
[BlackElo "2484"]
[Result "0-1"]
[Round "07"]
[TimeControl "180+1"]
[Date "2022.11.02"]
[WhiteClock "0:00:02"]
[BlackClock "0:00:07"]

1. d4 {[%clk 0:03:00]}  Nf6 {[%clk 0:02:59]} 2. Bf4 {[%clk 0:03:01]}  d5 {[%clk 0:02:57]} 3. e3 {[%clk 0:03:01]}  c5 {[%clk 0:02:57]} 4. c3 {[%clk 0:03:01]}  Nc6 {[%clk 0:02:56]} 5. Nd2 {[%clk 0:02:59]}  e6 {[%clk 0:02:26]} 6. Ngf3 {[%clk 0:02:59]}  Bd6 {[%clk 0:02:24]} 7. Bg3 {[%clk 0:02:59]}  O-O {[%clk 0:02:23]} 8. Bd3 {[%clk 0:02:56]}  b6 {[%clk 0:01:59]} 9. Qe2 {[%clk 0:02:49]}  Bb7 {[%clk 0:01:52]} 10. O-O {[%clk 0:02:47]}  Bxg3 {[%clk 0:01:46]} 11. hxg3 {[%clk 0:02:48]}  Qc7 {[%clk 0:01:19]} 12. dxc5 {[%clk 0:02:46]}  bxc5 {[%clk 0:01:19]} 13. e4 {[%clk 0:02:46]}  dxe4 {[%clk 0:01:11]} 14. Nxe4 {[%clk 0:02:45]}  Nxe4 {[%clk 0:01:11]} 15. Qxe4 {[%clk 0:02:44]}  g6 {[%clk 0:01:11]} 16. Qe3 {[%clk 0:02:38]}  Rfd8 {[%clk 0:01:08]} 17. Kh2 {[%clk 0:02:22]}  Ne7 {[%clk 0:01:06]} 18. Ng5 {[%clk 0:02:11]}  Nf5 {[%clk 0:01:00]} 19. Qe2 {[%clk 0:02:05]}  Rd6 {[%clk 0:00:46]} 20. Rad1 {[%clk 0:01:50]}  Rad8 {[%clk 0:00:45]} 21. Be4 {[%clk 0:01:47]}  Ba6 {[%clk 0:00:42]} 22. c4 {[%clk 0:01:41]}  Nd4 {[%clk 0:00:40]} 23. Qe3 {[%clk 0:01:20]}  Bxc4 {[%clk 0:00:37]} 24. Rh1 {[%clk 0:01:20]}  Nf5 {[%clk 0:00:30]} 25. Qc1 {[%clk 0:01:15]}  Rxd1 {[%clk 0:00:27]} 26. Rxd1 {[%clk 0:01:16]}  Rxd1 {[%clk 0:00:26]} 27. Qxd1 {[%clk 0:01:17]}  h6 {[%clk 0:00:26]} 28. Nf3 {[%clk 0:01:09]}  Bxa2 {[%clk 0:00:23]} 29. b3 {[%clk 0:01:06]}  c4 {[%clk 0:00:21]} 30. bxc4 {[%clk 0:01:03]}  Bxc4 {[%clk 0:00:21]} 31. Qa4 {[%clk 0:01:00]}  Bd5 {[%clk 0:00:16]} 32. Bd3 {[%clk 0:00:44]}  Bxf3 {[%clk 0:00:13]} 33. gxf3 {[%clk 0:00:45]}  Qd6 {[%clk 0:00:12]} 34. Bxf5 {[%clk 0:00:38]}  exf5 {[%clk 0:00:11]} 35. Qxa7 {[%clk 0:00:38]}  h5 {[%clk 0:00:11]} 36. Kg2 {[%clk 0:00:36]}  f4 {[%clk 0:00:10]} 37. Qa8+ {[%clk 0:00:32]}  Kg7 {[%clk 0:00:10]} 38. Qe4 {[%clk 0:00:33]}  fxg3 {[%clk 0:00:09]} 39. fxg3 {[%clk 0:00:33]}  Qd2+ {[%clk 0:00:08]} 40. Kh3 {[%clk 0:00:32]}  Qb2 {[%clk 0:00:08]} 41. g4 {[%clk 0:00:29]}  hxg4+ {[%clk 0:00:06]} 42. fxg4 {[%clk 0:00:23]}  Qf2 {[%clk 0:00:06]} 43. Qe5+ {[%clk 0:00:22]}  Qf6 {[%clk 0:00:06]} 44. Qe4 {[%clk 0:00:22]}  Qe6 {[%clk 0:00:07]} 45. Qd4+ {[%clk 0:00:22]}  Kg8 {[%clk 0:00:07]} 46. Qd8+ {[%clk 0:00:21]}  Kh7 {[%clk 0:00:07]} 47. Qd4 {[%clk 0:00:21]}  Qe7 {[%clk 0:00:07]} 48. Qf4 {[%clk 0:00:20]}  Kg8 {[%clk 0:00:07]} 49. Qb8+ {[%clk 0:00:19]}  Kg7 {[%clk 0:00:07]} 50. Qf4 {[%clk 0:00:20]}  Qa3+ {[%clk 0:00:07]} 51. Kh2 {[%clk 0:00:20]}  Qb2+ {[%clk 0:00:07]} 52. Kh3 {[%clk 0:00:20]}  Kf8 {[%clk 0:00:07]} 53. Qd6+ {[%clk 0:00:18]}  Ke8 {[%clk 0:00:07]} 54. Qc6+ {[%clk 0:00:18]}  Ke7 {[%clk 0:00:08]} 55. Qc5+ {[%clk 0:00:18]}  Ke6 {[%clk 0:00:06]} 56. Qe3+ {[%clk 0:00:17]}  Kf6 {[%clk 0:00:05]} 57. Qf4+ {[%clk 0:00:16]}  Kg7 {[%clk 0:00:05]} 58. Qf3 {[%clk 0:00:16]}  g5 {[%clk 0:00:04]} 59. Qf5 {[%clk 0:00:15]}  Qf6 {[%clk 0:00:05]} 60. Qe4 {[%clk 0:00:14]}  Qe6 {[%clk 0:00:05]} 61. Qd4+ {[%clk 0:00:13]}  Kg6 {[%clk 0:00:05]} 62. Qd3+ {[%clk 0:00:14]}  Kf6 {[%clk 0:00:05]} 63. Qf3+ {[%clk 0:00:13]}  Kg7 {[%clk 0:00:05]} 64. Qc3+ {[%clk 0:00:13]}  Qf6 {[%clk 0:00:06]} 65. Qd3 {[%clk 0:00:12]}  Qe5 {[%clk 0:00:06]} 66. Qf3 {[%clk 0:00:11]}  Kf8 {[%clk 0:00:06]} 67. Qa8+ {[%clk 0:00:11]}  Ke7 {[%clk 0:00:06]} 68. Qf3 {[%clk 0:00:12]}  f6 {[%clk 0:00:06]} 69. Qa3+ {[%clk 0:00:11]}  Ke6 {[%clk 0:00:06]} 70. Qb3+ {[%clk 0:00:12]}  Kd6 {[%clk 0:00:06]} 71. Qd3+ {[%clk 0:00:11]}  Kc5 {[%clk 0:00:07]} 72. Qf3 {[%clk 0:00:11]}  Kd4 {[%clk 0:00:07]} 73. Qd1+ {[%clk 0:00:08]}  Ke4 {[%clk 0:00:05]} 74. Qe2+ {[%clk 0:00:06]}  Kd4 {[%clk 0:00:05]} 75. Qd2+ {[%clk 0:00:06]}  Kc4 {[%clk 0:00:06]} 76. Qc2+ {[%clk 0:00:06]}  Qc3+ {[%clk 0:00:06]} 77. Qxc3+ {[%clk 0:00:06]}  Kxc3 {[%clk 0:00:06]} 78. Kg2 {[%clk 0:00:04]}  Kd4 {[%clk 0:00:06]} 79. Kf3 {[%clk 0:00:02]}  Kd3 {[%clk 0:00:06]} 80. Kf2 {[%clk 0:00:01]}  Ke4 {[%clk 0:00:07]} 81. Kg2 {[%clk 0:00:02]}  Kf4 {[%clk 0:00:06]} 82. Kh3 {[%clk 0:00:02]}  Kf3 {[%clk 0:00:07]} 0-1


[Site "https://www.chess.com"]

[Event "Titled Tuesday Blitz November 01 Early 2022"]
[White "Schekachikhin, Maksim"]
[Black "Azarov, Sergei"]
[WhiteFideId "24177830"]
[BlackFideId "13501470"]
[WhiteElo "2272"]
[BlackElo "2494"]
[Result "1-0"]
[Round "07"]
[TimeControl "180+1"]
[Date "2022.11.02"]
[WhiteClock "0:00:06"]
[BlackClock "0:00:04"]

1. d4 {[%clk 0:02:35]}  f5 {[%clk 0:02:36]} 2. Bf4 {[%clk 0:02:32]}  Nf6 {[%clk 0:02:35]} 3. e3 {[%clk 0:02:31]}  e6 {[%clk 0:02:33]} 4. Nf3 {[%clk 0:02:29]}  b6 {[%clk 0:02:34]} 5. h3 {[%clk 0:02:29]}  Bb7 {[%clk 0:02:33]} 6. Be2 {[%clk 0:02:29]}  Be7 {[%clk 0:02:31]} 7. O-O {[%clk 0:02:29]}  O-O {[%clk 0:02:31]} 8. c4 {[%clk 0:02:29]}  Ne4 {[%clk 0:02:27]} 9. Nbd2 {[%clk 0:02:28]}  Bf6 {[%clk 0:02:25]} 10. Nxe4 {[%clk 0:02:26]}  Bxe4 {[%clk 0:02:24]} 11. Nd2 {[%clk 0:02:26]}  Bb7 {[%clk 0:02:23]} 12. Bf3 {[%clk 0:02:26]}  Bxf3 {[%clk 0:02:22]} 13. Qxf3 {[%clk 0:02:27]}  Nc6 {[%clk 0:02:21]} 14. Rfd1 {[%clk 0:02:15]}  Qe8 {[%clk 0:02:19]} 15. a3 {[%clk 0:02:05]}  e5 {[%clk 0:02:06]} 16. dxe5 {[%clk 0:02:01]}  Nxe5 {[%clk 0:02:06]} 17. Qd5+ {[%clk 0:02:00]}  Kh8 {[%clk 0:01:58]} 18. Rab1 {[%clk 0:01:30]}  d6 {[%clk 0:01:54]} 19. Nf3 {[%clk 0:01:21]}  Nxf3+ {[%clk 0:01:23]} 20. Qxf3 {[%clk 0:01:22]}  Qe4 {[%clk 0:01:19]} 21. Qxe4 {[%clk 0:01:20]}  fxe4 {[%clk 0:01:20]} 22. b4 {[%clk 0:01:20]}  Rad8 {[%clk 0:01:07]} 23. a4 {[%clk 0:01:12]}  Kg8 {[%clk 0:01:05]} 24. Rd5 {[%clk 0:01:07]}  Kf7 {[%clk 0:01:02]} 25. a5 {[%clk 0:01:03]}  Ke6 {[%clk 0:01:00]} 26. axb6 {[%clk 0:00:39]}  axb6 {[%clk 0:01:00]} 27. Rbd1 {[%clk 0:00:38]}  h6 {[%clk 0:00:50]} 28. g4 {[%clk 0:00:17]}  Ra8 {[%clk 0:00:36]} 29. c5 {[%clk 0:00:15]}  dxc5 {[%clk 0:00:36]} 30. bxc5 {[%clk 0:00:16]}  Ra5 {[%clk 0:00:36]} 31. Bxc7 {[%clk 0:00:14]}  Rxc5 {[%clk 0:00:31]} 32. Rd6+ {[%clk 0:00:14]}  Kf7 {[%clk 0:00:30]} 33. Bxb6 {[%clk 0:00:14]}  Rc4 {[%clk 0:00:29]} 34. Bd4 {[%clk 0:00:13]}  Rfc8 {[%clk 0:00:23]} 35. Kg2 {[%clk 0:00:11]}  Be7 {[%clk 0:00:18]} 36. Rd7 {[%clk 0:00:10]}  Ke6 {[%clk 0:00:15]} 37. Bxg7 {[%clk 0:00:10]}  Rc2 {[%clk 0:00:14]} 38. Bxh6 {[%clk 0:00:09]}  Bh4 {[%clk 0:00:14]} 39. R7d2 {[%clk 0:00:08]}  R2c4 {[%clk 0:00:09]} 40. Bf4 {[%clk 0:00:07]}  Ra4 {[%clk 0:00:08]} 41. Rd6+ {[%clk 0:00:07]}  Kf7 {[%clk 0:00:07]} 42. Rd7+ {[%clk 0:00:07]}  Kg8 {[%clk 0:00:06]} 43. R7d4 {[%clk 0:00:06]}  Ra2 {[%clk 0:00:05]} 44. Bg3 {[%clk 0:00:06]}  Bxg3 {[%clk 0:00:03]} 45. Kxg3 {[%clk 0:00:06]}  Rcc2 {[%clk 0:00:04]} 46. Rf1 {[%clk 0:00:06]} 1-0


[Site "https://www.chess.com"]

[Event "Titled Tuesday Blitz November 01 Early 2022"]
[White "Shandrygin, Nikita"]
[Black "Gokerkan, Cem Kaan"]
[WhiteFideId "24198668"]
[BlackFideId "6336760"]
[WhiteElo "2323"]
[BlackElo "2365"]
[Result "0-1"]
[Round "07"]
[TimeControl "180+1"]
[Date "2022.11.01"]
[WhiteClock "0:00:06"]
[BlackClock "0:00:09"]

1. e4 {[%clk 0:03:00]}  c5 {[%clk 0:02:59]} 2. Nf3 {[%clk 0:03:01]}  g6 {[%clk 0:03:00]} 3. d4 {[%clk 0:03:01]}  cxd4 {[%clk 0:03:01]} 4. Nxd4 {[%clk 0:03:01]}  Bg7 {[%clk 0:03:00]} 5. Nc3 {[%clk 0:03:02]}  Nc6 {[%clk 0:03:01]} 6. Be3 {[%clk 0:03:03]}  Nf6 {[%clk 0:03:01]} 7. Nxc6 {[%clk 0:03:03]}  bxc6 {[%clk 0:03:01]} 8. e5 {[%clk 0:03:04]}  Ng8 {[%clk 0:02:41]} 9. f4 {[%clk 0:03:03]}  Nh6 {[%clk 0:02:42]} 10. Qd2 {[%clk 0:03:03]}  O-O {[%clk 0:02:40]} 11. O-O-O {[%clk 0:03:03]}  d6 {[%clk 0:02:41]} 12. exd6 {[%clk 0:03:00]}  Nf5 {[%clk 0:02:32]} 13. dxe7 {[%clk 0:02:51]}  Qxe7 {[%clk 0:02:33]} 14. Bf2 {[%clk 0:02:48]}  Rb8 {[%clk 0:02:33]} 15. Bc4 {[%clk 0:02:41]}  Be6 {[%clk 0:01:46]} 16. Bb3 {[%clk 0:02:40]}  c5 {[%clk 0:01:26]} 17. Rhe1 {[%clk 0:02:21]}  c4 {[%clk 0:01:09]} 18. Nd5 {[%clk 0:02:17]}  Qb7 {[%clk 0:00:44]} 19. g4 {[%clk 0:01:56]}  cxb3 {[%clk 0:00:43]} 20. axb3 {[%clk 0:01:54]}  Rfc8 {[%clk 0:00:20]} 21. Nc3 {[%clk 0:01:41]}  Ne7 {[%clk 0:00:14]} 22. f5 {[%clk 0:01:30]}  gxf5 {[%clk 0:00:15]} 23. gxf5 {[%clk 0:01:27]}  Nxf5 {[%clk 0:00:15]} 24. Rg1 {[%clk 0:01:26]}  Kf8 {[%clk 0:00:11]} 25. Rxg7 {[%clk 0:01:15]}  Kxg7 {[%clk 0:00:12]} 26. Rg1+ {[%clk 0:00:50]}  Kf8 {[%clk 0:00:13]} 27. Qf4 {[%clk 0:00:12]}  Qb4 {[%clk 0:00:09]} 28. Qg5 {[%clk 0:00:08]}  Ke8 {[%clk 0:00:07]} 29. Qg8+ {[%clk 0:00:05]}  Qf8 {[%clk 0:00:07]} 30. Qg5 {[%clk 0:00:04]}  Qh6 {[%clk 0:00:07]} 31. Qxh6 {[%clk 0:00:05]}  Nxh6 {[%clk 0:00:07]} 32. Be3 {[%clk 0:00:06]}  Nf5 {[%clk 0:00:08]} 33. Bf4 {[%clk 0:00:06]}  Rb4 {[%clk 0:00:08]} 34. Be5 {[%clk 0:00:06]}  f6 {[%clk 0:00:05]} 35. Bxf6 {[%clk 0:00:05]}  Kf7 {[%clk 0:00:06]} 36. Be5 {[%clk 0:00:06]}  Rg8 {[%clk 0:00:07]} 37. Re1 {[%clk 0:00:05]}  Rbg4 {[%clk 0:00:07]} 38. Ne4 {[%clk 0:00:05]}  Rg1 {[%clk 0:00:05]} 39. Kd2 {[%clk 0:00:05]}  Rxe1 {[%clk 0:00:05]} 40. Kxe1 {[%clk 0:00:06]}  Re8 {[%clk 0:00:06]} 41. Kf2 {[%clk 0:00:06]}  Bd5 {[%clk 0:00:05]} 42. Ng5+ {[%clk 0:00:05]}  Kg6 {[%clk 0:00:06]} 43. Bf4 {[%clk 0:00:06]}  Nd6 {[%clk 0:00:05]} 44. Nh3 {[%clk 0:00:05]}  Ne4+ {[%clk 0:00:05]} 45. Kg1 {[%clk 0:00:05]}  Be6 {[%clk 0:00:06]} 46. Nf2 {[%clk 0:00:05]}  Nxf2 {[%clk 0:00:06]} 47. Kxf2 {[%clk 0:00:06]}  Bf5 {[%clk 0:00:07]} 48. c4 {[%clk 0:00:07]}  Bc2 {[%clk 0:00:08]} 49. b4 {[%clk 0:00:07]}  Bd3 {[%clk 0:00:09]} 50. c5 {[%clk 0:00:07]}  a6 {[%clk 0:00:10]} 51. Bd6 {[%clk 0:00:07]}  Bb5 {[%clk 0:00:10]} 52. Kf3 {[%clk 0:00:07]}  Kf5 {[%clk 0:00:10]} 53. Bc7 {[%clk 0:00:06]}  Re4 {[%clk 0:00:09]} 0-1


[Site "https://www.chess.com"]

[Event "Titled Tuesday Blitz November 01 Early 2022"]
[White "Shipov, Sergei"]
[Black "Villamayor, Buenaventura"]
[WhiteFideId "4113624"]
[BlackFideId "5200393"]
[WhiteElo "2768"]
[BlackElo "2301"]
[Result "1-0"]
[Round "07"]
[TimeControl "180+1"]
[Date "2022.11.02"]
[WhiteClock "0:00:55"]
[BlackClock "0:00:51"]

1. d4 {[%clk 0:03:00]}  Nf6 {[%clk 0:02:59]} 2. c4 {[%clk 0:03:00]}  e6 {[%clk 0:02:59]} 3. Nc3 {[%clk 0:03:00]}  Bb4 {[%clk 0:02:58]} 4. Qc2 {[%clk 0:03:00]}  c5 {[%clk 0:02:57]} 5. dxc5 {[%clk 0:03:00]}  Bxc5 {[%clk 0:02:58]} 6. Nf3 {[%clk 0:02:59]}  Qb6 {[%clk 0:02:59]} 7. e3 {[%clk 0:02:58]}  Qc7 {[%clk 0:02:59]} 8. b3 {[%clk 0:02:53]}  a6 {[%clk 0:02:59]} 9. Bb2 {[%clk 0:02:54]}  b6 {[%clk 0:02:58]} 10. Be2 {[%clk 0:02:53]}  Bb7 {[%clk 0:02:57]} 11. O-O-O {[%clk 0:02:48]}  Be7 {[%clk 0:02:53]} 12. g4 {[%clk 0:02:47]}  d5 {[%clk 0:02:50]} 13. g5 {[%clk 0:02:46]}  Ne4 {[%clk 0:02:48]} 14. Nxe4 {[%clk 0:02:46]}  dxe4 {[%clk 0:02:48]} 15. Ne5 {[%clk 0:01:57]}  Bxg5 {[%clk 0:02:41]} 16. Rhg1 {[%clk 0:01:56]}  Bf6 {[%clk 0:02:40]} 17. Ng4 {[%clk 0:01:56]}  Nd7 {[%clk 0:02:36]} 18. Rxd7 {[%clk 0:01:52]}  Bxb2+ {[%clk 0:02:17]} 19. Qxb2 {[%clk 0:01:51]}  Qxd7 {[%clk 0:02:18]} 20. Rd1 {[%clk 0:01:45]}  Qxd1+ {[%clk 0:01:26]} 21. Bxd1 {[%clk 0:01:43]}  O-O {[%clk 0:01:26]} 22. h4 {[%clk 0:01:38]}  Rad8 {[%clk 0:01:22]} 23. h5 {[%clk 0:01:36]}  h6 {[%clk 0:01:10]} 24. Qe5 {[%clk 0:01:32]}  Rd7 {[%clk 0:01:05]} 25. Bc2 {[%clk 0:01:27]}  Rfd8 {[%clk 0:01:03]} 26. a4 {[%clk 0:01:21]}  Rd2 {[%clk 0:00:58]} 27. Qc7 {[%clk 0:01:18]}  R8d7 {[%clk 0:00:56]} 28. Qxb6 {[%clk 0:01:02]}  Re2 {[%clk 0:00:51]} 29. c5 {[%clk 0:00:56]}  Rdd2 {[%clk 0:00:51]} 30. Bd1 {[%clk 0:00:55]} 1-0


[Site "https://www.chess.com"]

[Event "Titled Tuesday Blitz November 01 Early 2022"]
[White "Smietanska, Wiktoria"]
[Black "Devaev, Alexander"]
[WhiteFideId "21869359"]
[BlackFideId "4169395"]
[WhiteElo "1854"]
[BlackElo "2225"]
[Result "0-1"]
[Round "07"]
[TimeControl "180+1"]
[Date "2022.11.02"]
[WhiteClock "0:00:44"]
[BlackClock "0:02:17"]

1. c4 {[%clk 0:03:00]}  c5 {[%clk 0:03:00]} 2. Nf3 {[%clk 0:03:00]}  e6 {[%clk 0:03:00]} 3. Nc3 {[%clk 0:03:00]}  Nf6 {[%clk 0:03:01]} 4. d4 {[%clk 0:03:00]}  cxd4 {[%clk 0:03:01]} 5. Nxd4 {[%clk 0:03:01]}  Be7 {[%clk 0:03:02]} 6. g3 {[%clk 0:03:02]}  Nc6 {[%clk 0:03:01]} 7. Bg2 {[%clk 0:03:02]}  Ne5 {[%clk 0:03:01]} 8. b3 {[%clk 0:03:02]}  d6 {[%clk 0:03:02]} 9. O-O {[%clk 0:03:02]}  O-O {[%clk 0:03:02]} 10. f4 {[%clk 0:03:03]}  Ng6 {[%clk 0:03:02]} 11. e4 {[%clk 0:03:03]}  a6 {[%clk 0:03:02]} 12. Bb2 {[%clk 0:03:03]}  Qc7 {[%clk 0:03:03]} 13. Qe2 {[%clk 0:03:03]}  Rb8 {[%clk 0:03:03]} 14. Rad1 {[%clk 0:03:03]}  Re8 {[%clk 0:03:03]} 15. h4 {[%clk 0:03:02]}  h6 {[%clk 0:03:00]} 16. h5 {[%clk 0:02:58]}  Nf8 {[%clk 0:03:01]} 17. g4 {[%clk 0:02:34]}  e5 {[%clk 0:02:59]} 18. Nf5 {[%clk 0:02:25]}  Bxf5 {[%clk 0:02:58]} 19. gxf5 {[%clk 0:02:17]}  N8d7 {[%clk 0:02:52]} 20. Bc1 {[%clk 0:02:05]}  b5 {[%clk 0:02:46]} 21. Nd5 {[%clk 0:01:32]}  Nxd5 {[%clk 0:02:45]} 22. c5 {[%clk 0:01:04]}  Qxc5+ {[%clk 0:02:34]} 23. Kh1 {[%clk 0:00:55]}  Nxf4 {[%clk 0:02:18]} 24. Qg4 {[%clk 0:00:44]}  Nf6 {[%clk 0:02:17]} 0-1


[Site "https://www.chess.com"]

[Event "Titled Tuesday Blitz November 01 Early 2022"]
[White "Storey, Charles H"]
[Black "Vakhania, Alexandra"]
[WhiteFideId "406686"]
[BlackFideId "13602560"]
[WhiteElo "2252"]
[BlackElo "2053"]
[Result "1-0"]
[Round "07"]
[TimeControl "180+1"]
[Date "2022.11.02"]
[WhiteClock "0:01:10"]
[BlackClock "0:00:49"]

1. e4 {[%clk 0:03:00]}  c6 {[%clk 0:02:51]} 2. Nc3 {[%clk 0:02:55]}  d5 {[%clk 0:02:49]} 3. Nf3 {[%clk 0:02:55]}  g6 {[%clk 0:02:47]} 4. d4 {[%clk 0:02:51]}  Bg7 {[%clk 0:02:46]} 5. e5 {[%clk 0:02:49]}  Nh6 {[%clk 0:02:45]} 6. h3 {[%clk 0:02:42]}  O-O {[%clk 0:02:43]} 7. Be2 {[%clk 0:02:40]}  f6 {[%clk 0:02:41]} 8. exf6 {[%clk 0:02:39]}  exf6 {[%clk 0:02:39]} 9. Bf4 {[%clk 0:02:39]}  Nf7 {[%clk 0:02:38]} 10. Qd2 {[%clk 0:02:37]}  Nd6 {[%clk 0:02:28]} 11. Bh6 {[%clk 0:02:29]}  Ne4 {[%clk 0:02:26]} 12. Nxe4 {[%clk 0:02:26]}  dxe4 {[%clk 0:02:27]} 13. Bc4+ {[%clk 0:02:25]}  Kh8 {[%clk 0:02:25]} 14. Bxg7+ {[%clk 0:02:25]}  Kxg7 {[%clk 0:02:25]} 15. Nh2 {[%clk 0:02:24]}  f5 {[%clk 0:02:21]} 16. O-O-O {[%clk 0:02:20]}  Nd7 {[%clk 0:02:10]} 17. f3 {[%clk 0:02:11]}  Nb6 {[%clk 0:02:06]} 18. Bb3 {[%clk 0:02:08]}  Nd5 {[%clk 0:01:53]} 19. fxe4 {[%clk 0:02:03]}  fxe4 {[%clk 0:01:52]} 20. Ng4 {[%clk 0:02:02]}  a5 {[%clk 0:01:43]} 21. Qh6+ {[%clk 0:01:57]}  Kh8 {[%clk 0:01:41]} 22. Ne5 {[%clk 0:01:56]}  Rf6 {[%clk 0:01:26]} 23. Rhf1 {[%clk 0:01:44]}  Be6 {[%clk 0:01:12]} 24. g4 {[%clk 0:01:32]}  a4 {[%clk 0:01:08]} 25. Bxd5 {[%clk 0:01:24]}  Bxd5 {[%clk 0:01:04]} 26. g5 {[%clk 0:01:21]}  Rxf1 {[%clk 0:00:51]} 27. Nxg6+ {[%clk 0:01:21]}  Kg8 {[%clk 0:00:51]} 28. Rxf1 {[%clk 0:01:21]}  hxg6 {[%clk 0:00:50]} 29. Qxg6+ {[%clk 0:01:21]}  Kh8 {[%clk 0:00:49]} 30. Rf4 {[%clk 0:01:10]} 1-0


[Site "https://www.chess.com"]